[Event "*** Titled Tuesday Blitz"]
[Site "Chess.com"]
[Date "2020.02.04"]
[Round "7"]
[White "olksuna"]
[Black "AvitalBor"]
[Result "1-0"]
[WhiteElo "2604"]
[BlackElo "2734"]
[TimeControl "180+2"]
[EndTime "14:33:59 PST"]
[Termination "olksuna won on time"]

1. Nf3 {[%clk 0:03:01.9]} 1... Nf6 {[%clk 0:03:00.6]} 2. g3 {[%clk 0:03:02.4]}
2... d5 {[%clk 0:02:59.4]} 3. Bg2 {[%clk 0:03:03.5]} 3... Nbd7 {[%clk
0:02:56.6]} 4. d4 {[%clk 0:03:01.8]} 4... c6 {[%clk 0:02:56.1]} 5. O-O {[%clk
0:03:01.9]} 5... g6 {[%clk 0:02:54.1]} 6. b3 {[%clk 0:03:01.7]} 6... Bg7 {[%clk
0:02:54.8]} 7. c4 {[%clk 0:03:03.4]} 7... O-O {[%clk 0:02:54.4]} 8. Bb2 {[%clk
0:03:04.8]} 8... a5 {[%clk 0:02:55.1]} 9. Nc3 {[%clk 0:03:05.2]} 9... dxc4
{[%clk 0:02:53]} 10. bxc4 {[%clk 0:03:06]} 10... Nb6 {[%clk 0:02:54.5]} 11. Qd3
{[%clk 0:03:01.8]} 11... Be6 {[%clk 0:02:51.5]} 12. Nd2 {[%clk 0:02:59.9]} 12...
Ne8 {[%clk 0:02:44.8]} 13. c5 {[%clk 0:02:42.7]} 13... Nd7 {[%clk 0:02:29.1]}
14. Rfd1 {[%clk 0:02:34.3]} 14... Nc7 {[%clk 0:02:24.1]} 15. Nc4 {[%clk
0:02:28.1]} 15... Na6 {[%clk 0:02:13.6]} 16. a3 {[%clk 0:02:15]} 16... Qc7
{[%clk 0:02:00.1]} 17. Na4 {[%clk 0:01:56.2]} 17... Rfd8 {[%clk 0:01:58.3]} 18.
Qc2 {[%clk 0:01:56.9]} 18... Bxc4 {[%clk 0:01:26.9]} 19. Qxc4 {[%clk 0:01:58.8]}
19... e5 {[%clk 0:01:27.8]} 20. d5 {[%clk 0:01:46.6]} 20... cxd5 {[%clk
0:01:27.2]} 21. Rxd5 {[%clk 0:01:46.2]} 21... Rac8 {[%clk 0:01:20.8]} 22. Rad1
{[%clk 0:01:42.1]} 22... Ndxc5 {[%clk 0:01:14.7]} 23. Rxd8+ {[%clk 0:01:21.5]}
23... Rxd8 {[%clk 0:01:16.6]} 24. Rxd8+ {[%clk 0:01:21]} 24... Qxd8 {[%clk
0:01:18]} 25. Nxc5 {[%clk 0:01:21.3]} 25... Qc7 {[%clk 0:01:14.8]} 26. Bxb7
{[%clk 0:01:08.4]} 26... Nxc5 {[%clk 0:01:10.9]} 27. Bd5 {[%clk 0:01:08.7]}
27... Bf6 {[%clk 0:01:03.8]} 28. Kg2 {[%clk 0:01:08.2]} 28... Kg7 {[%clk
0:01:03.6]} 29. Bc3 {[%clk 0:00:55.8]} 29... h5 {[%clk 0:00:53.1]} 30. e4 {[%clk
0:00:49.3]} 30... Qb6 {[%clk 0:00:47.8]} 31. Bxf7 {[%clk 0:00:44.9]} 31... Nxe4
{[%clk 0:00:48.1]} 32. Qxe4 {[%clk 0:00:41.6]} 32... Kxf7 {[%clk 0:00:50]} 33.
Bxe5 {[%clk 0:00:37.9]} 33... Bxe5 {[%clk 0:00:39]} 34. Qxe5 {[%clk 0:00:39.8]}
34... Qc6+ {[%clk 0:00:40.1]} 35. f3 {[%clk 0:00:28]} 35... Qc2+ {[%clk
0:00:40.2]} 36. Kh3 {[%clk 0:00:28.2]} 36... a4 {[%clk 0:00:41.8]} 37. g4 {[%clk
0:00:18.1]} 37... hxg4+ {[%clk 0:00:39.7]} 38. fxg4 {[%clk 0:00:20]} 38... Qb3+
{[%clk 0:00:35.6]} 39. Qg3 {[%clk 0:00:19.5]} 39... g5 {[%clk 0:00:33.3]} 40.
Kg2 {[%clk 0:00:19.9]} 40... Ke6 {[%clk 0:00:32]} 41. Qf3 {[%clk 0:00:16.4]}
41... Qb2+ {[%clk 0:00:18.1]} 42. Kg3 {[%clk 0:00:15.1]} 42... Qe5+ {[%clk
0:00:19.5]} 43. Kg2 {[%clk 0:00:16]} 43... Qb2+ {[%clk 0:00:21]} 44. Kh3 {[%clk
0:00:11.8]} 44... Qc2 {[%clk 0:00:18.9]} 45. Qe3+ {[%clk 0:00:11.1]} 45... Kf6
{[%clk 0:00:18.3]} 46. Kg3 {[%clk 0:00:09.9]} 46... Qb3 {[%clk 0:00:17.9]} 47.
Kf3 {[%clk 0:00:07.9]} 47... Qd1+ {[%clk 0:00:17.9]} 48. Kg3 {[%clk 0:00:07.9]}
48... Qd6+ {[%clk 0:00:16.3]} 49. Kg2 {[%clk 0:00:08]} 49... Qd5+ {[%clk
0:00:16.6]} 50. Qf3+ {[%clk 0:00:08.2]} 50... Ke5 {[%clk 0:00:16.2]} 51. Qxd5+
{[%clk 0:00:08.8]} 51... Kxd5 {[%clk 0:00:18.1]} 52. Kg3 {[%clk 0:00:10.1]}
52... Kc4 {[%clk 0:00:18.2]} 53. h4 {[%clk 0:00:11.4]} 53... gxh4+ {[%clk
0:00:19]} 54. Kxh4 {[%clk 0:00:13.3]} 54... Kb3 {[%clk 0:00:20.1]} 55. g5 {[%clk
0:00:15.2]} 55... Kxa3 {[%clk 0:00:21.2]} 56. g6 {[%clk 0:00:17.1]} 1-0

[Event "*** Titled Tuesday Blitz"]
[Site "Chess.com"]
[Date "2020.02.04"]
[Round "7"]
[White "Valk4"]
[Black "ehrenfeld"]
[Result "0-1"]
[WhiteElo "2275"]
[BlackElo "2480"]
[TimeControl "180+2"]
[EndTime "14:34:00 PST"]
[Termination "ehrenfeld won by resignation"]

1. e4 {[%clk 0:03:01.9]} 1... e5 {[%clk 0:03:00.4]} 2. Nf3 {[%clk 0:03:02.1]}
2... Nc6 {[%clk 0:03:01.4]} 3. Bc4 {[%clk 0:03:02.4]} 3... Nf6 {[%clk
0:03:01.9]} 4. d3 {[%clk 0:03:03.3]} 4... h6 {[%clk 0:03:00.7]} 5. a4 {[%clk
0:02:57.3]} 5... d6 {[%clk 0:03:01.1]} 6. Nc3 {[%clk 0:02:57]} 6... g5 {[%clk
0:03:01.1]} 7. Be3 {[%clk 0:02:53.5]} 7... Bg7 {[%clk 0:03:01.1]} 8. h3 {[%clk
0:02:49.2]} 8... O-O {[%clk 0:03:00.7]} 9. O-O {[%clk 0:02:29.1]} 9... Ne7
{[%clk 0:02:55.6]} 10. d4 {[%clk 0:02:23.8]} 10... Nxe4 {[%clk 0:02:36.6]} 11.
Nxe4 {[%clk 0:02:14.6]} 11... d5 {[%clk 0:02:37.5]} 12. Bxd5 {[%clk 0:02:12.3]}
12... Nxd5 {[%clk 0:02:31.9]} 13. Nxe5 {[%clk 0:02:00]} 13... Nxe3 {[%clk
0:02:31.4]} 14. fxe3 {[%clk 0:02:01.9]} 14... Bxe5 {[%clk 0:02:26.4]} 15. dxe5
{[%clk 0:02:03.5]} 15... Qxd1 {[%clk 0:02:27.3]} 16. Raxd1 {[%clk 0:01:59]}
16... Kg7 {[%clk 0:02:21.8]} 17. Nf6 {[%clk 0:01:57.1]} 17... Be6 {[%clk
0:02:20.5]} 18. Rd4 {[%clk 0:01:56.1]} 18... c5 {[%clk 0:02:14.6]} 19. Rd6
{[%clk 0:01:37.7]} 19... Rad8 {[%clk 0:02:13.6]} 20. Ne4 {[%clk 0:01:36.9]}
20... b6 {[%clk 0:02:08.3]} 21. Ng3 {[%clk 0:01:00.8]} 21... Rc8 {[%clk
0:02:00.3]} 22. Rf6 {[%clk 0:00:52.6]} 22... Rfe8 {[%clk 0:01:50.7]} 23. e4
{[%clk 0:00:47.2]} 23... Re7 {[%clk 0:01:44.7]} 24. Rxh6 {[%clk 0:00:37.4]}
24... c4 {[%clk 0:01:20.2]} 25. Rf6 {[%clk 0:00:34.4]} 25... c3 {[%clk
0:01:18.3]} 26. b3 {[%clk 0:00:34.2]} 26... Rc5 {[%clk 0:01:19.2]} 27. Nf5+
{[%clk 0:00:30.9]} 27... Bxf5 {[%clk 0:01:18.7]} 28. Rxf5 {[%clk 0:00:31.7]}
28... Rcxe5 {[%clk 0:01:16]} 29. Rd3 {[%clk 0:00:27.7]} 29... Rxf5 {[%clk
0:00:47.3]} 30. exf5 {[%clk 0:00:29.6]} 30... Kf6 {[%clk 0:00:30.7]} 31. g4
{[%clk 0:00:25.6]} 31... Rc7 {[%clk 0:00:25.9]} 32. Kf2 {[%clk 0:00:18.7]} 32...
Ke5 {[%clk 0:00:26.9]} 33. Ke3 {[%clk 0:00:19.6]} 33... f6 {[%clk 0:00:25]} 34.
Kf3 {[%clk 0:00:16.5]} 34... Rh7 {[%clk 0:00:24.5]} 35. Kg3 {[%clk 0:00:17.1]}
35... Rc7 {[%clk 0:00:25.2]} 36. h4 {[%clk 0:00:18.3]} 36... gxh4+ {[%clk
0:00:26]} 37. Kxh4 {[%clk 0:00:20]} 37... Kf4 {[%clk 0:00:27.3]} 38. Rd4+ {[%clk
0:00:20.9]} 38... Ke3 {[%clk 0:00:28.3]} 39. Rc4 {[%clk 0:00:19.4]} 39... Rh7+
{[%clk 0:00:26.4]} 40. Kg3 {[%clk 0:00:20.2]} 40... Kd2 {[%clk 0:00:27.6]} 41.
Rc6 {[%clk 0:00:13.9]} 41... Rf7 {[%clk 0:00:25.9]} 42. Kf4 {[%clk 0:00:13.2]}
42... Kxc2 {[%clk 0:00:26.6]} 43. g5 {[%clk 0:00:13.8]} 43... fxg5+ {[%clk
0:00:27.2]} 44. Kxg5 {[%clk 0:00:15.7]} 44... Kb2 {[%clk 0:00:22.2]} 45. b4
{[%clk 0:00:11.2]} 45... c2 {[%clk 0:00:22.5]} 46. Kg6 {[%clk 0:00:10.5]} 46...
Rf8 {[%clk 0:00:23.6]} 47. f6 {[%clk 0:00:10.6]} 47... c1=Q {[%clk 0:00:23.9]}
48. Rxc1 {[%clk 0:00:12]} 48... Kxc1 {[%clk 0:00:24.8]} 49. Kg7 {[%clk
0:00:13.5]} 49... Rd8 {[%clk 0:00:25.5]} 50. f7 {[%clk 0:00:14.8]} 50... Kc2
{[%clk 0:00:26.4]} 51. f8=Q {[%clk 0:00:15.3]} 51... Rxf8 {[%clk 0:00:27.5]} 52.
Kxf8 {[%clk 0:00:17.1]} 52... Kb3 {[%clk 0:00:28.6]} 53. a5 {[%clk 0:00:18.4]}
53... Kxb4 {[%clk 0:00:29.5]} 0-1

[Event "*** Titled Tuesday Blitz"]
[Site "Chess.com"]
[Date "2020.02.04"]
[Round "7"]
[White "SoltaniciR"]
[Black "cottage_cheese"]
[Result "1-0"]
[WhiteElo "2474"]
[BlackElo "2285"]
[TimeControl "180+2"]
[EndTime "14:34:08 PST"]
[Termination "SoltaniciR won by resignation"]

1. e4 {[%clk 0:03:01.9]} 1... e5 {[%clk 0:02:59.8]} 2. Nf3 {[%clk 0:03:02.7]}
2... Nc6 {[%clk 0:03:00]} 3. Bb5 {[%clk 0:03:03.4]} 3... a6 {[%clk 0:03:00.4]}
4. Ba4 {[%clk 0:03:04.5]} 4... Nf6 {[%clk 0:03:00.8]} 5. O-O {[%clk 0:03:05.6]}
5... Be7 {[%clk 0:02:59.8]} 6. Re1 {[%clk 0:03:06.5]} 6... b5 {[%clk 0:03:01]}
7. Bb3 {[%clk 0:03:07.7]} 7... d6 {[%clk 0:03:02.9]} 8. c3 {[%clk 0:03:08.8]}
8... O-O {[%clk 0:03:03.8]} 9. h3 {[%clk 0:03:09.7]} 9... Nb8 {[%clk 0:03:05.2]}
10. d3 {[%clk 0:03:10.3]} 10... Nbd7 {[%clk 0:02:44]} 11. Nbd2 {[%clk
0:03:10.1]} 11... Nb6 {[%clk 0:02:40.4]} 12. Nf1 {[%clk 0:02:57.9]} 12... c5
{[%clk 0:02:37.8]} 13. Ng3 {[%clk 0:02:50.2]} 13... a5 {[%clk 0:01:46.4]} 14. d4
{[%clk 0:02:41.5]} 14... a4 {[%clk 0:01:44]} 15. Bc2 {[%clk 0:02:42.4]} 15...
cxd4 {[%clk 0:01:37.7]} 16. cxd4 {[%clk 0:02:42.6]} 16... Qc7 {[%clk 0:01:28.2]}
17. Rb1 {[%clk 0:02:26.2]} 17... Re8 {[%clk 0:00:55.8]} 18. b3 {[%clk
0:02:23.2]} 18... Bf8 {[%clk 0:00:48.3]} 19. Bg5 {[%clk 0:02:19.2]} 19... Nfd7
{[%clk 0:00:39.3]} 20. Bd3 {[%clk 0:02:18.9]} 20... Ba6 {[%clk 0:00:33.7]} 21.
Rc1 {[%clk 0:02:11]} 21... Qb7 {[%clk 0:00:30.5]} 22. Nf5 {[%clk 0:01:54]} 22...
b4 {[%clk 0:00:22]} 23. Bxa6 {[%clk 0:01:32]} 23... Rxa6 {[%clk 0:00:18]} 24.
Nd2 {[%clk 0:01:22.2]} 24... h6 {[%clk 0:00:14.5]} 25. Be3 {[%clk 0:01:19.1]}
25... d5 {[%clk 0:00:12.8]} 26. Qg4 {[%clk 0:01:14.6]} 26... Nf6 {[%clk
0:00:10.9]} 27. Qg3 {[%clk 0:01:13.3]} 27... Nh5 {[%clk 0:00:09]} 28. Qf3 {[%clk
0:01:14.2]} 28... Nf4 {[%clk 0:00:09.1]} 29. Bxf4 {[%clk 0:01:08.2]} 29... exf4
{[%clk 0:00:10]} 30. e5 {[%clk 0:00:56]} 30... axb3 {[%clk 0:00:08.8]} 31. axb3
{[%clk 0:00:55.5]} 31... Nc8 {[%clk 0:00:05.2]} 32. Qxf4 {[%clk 0:00:54.9]}
32... Rg6 {[%clk 0:00:04.8]} 33. Nf3 {[%clk 0:00:54.5]} 33... Be7 {[%clk
0:00:03.5]} 34. Ne3 {[%clk 0:00:45.3]} 34... Bg5 {[%clk 0:00:02.9]} 35. Nxg5
{[%clk 0:00:42.3]} 35... Rxg5 {[%clk 0:00:03]} 36. Rc5 {[%clk 0:00:34.5]} 36...
Ne7 {[%clk 0:00:02.8]} 37. Rec1 {[%clk 0:00:30.2]} 37... Qd7 {[%clk 0:00:04.2]}
38. Qf3 {[%clk 0:00:19.4]} 38... Ng6 {[%clk 0:00:05.1]} 39. Rxd5 {[%clk
0:00:15.6]} 39... Qb7 {[%clk 0:00:05.7]} 40. g3 {[%clk 0:00:14.6]} 40... Nh4
{[%clk 0:00:06.4]} 41. Qe4 {[%clk 0:00:15.6]} 41... f5 {[%clk 0:00:06.6]} 42.
Qxh4 {[%clk 0:00:13.4]} 42... Rf8 {[%clk 0:00:07.3]} 43. Qf4 {[%clk 0:00:14]}
43... Qa7 {[%clk 0:00:06.6]} 44. Rdc5 {[%clk 0:00:14.4]} 44... Qa2 {[%clk
0:00:06.7]} 45. R5c2 {[%clk 0:00:13.6]} 45... Qxb3 {[%clk 0:00:07.4]} 46. h4
{[%clk 0:00:14.7]} 46... Rg6 {[%clk 0:00:08.2]} 47. d5 {[%clk 0:00:13.4]} 47...
Qd3 {[%clk 0:00:09.1]} 48. e6 {[%clk 0:00:11.7]} 48... b3 {[%clk 0:00:09.7]} 49.
Rc3 {[%clk 0:00:11.7]} 49... Qd2 {[%clk 0:00:10]} 50. Ng2 {[%clk 0:00:12.6]}
50... Qa2 {[%clk 0:00:09.4]} 51. Qc4 {[%clk 0:00:11.4]} 51... Rb8 {[%clk
0:00:08.8]} 52. Nf4 {[%clk 0:00:11.7]} 52... Qa3 {[%clk 0:00:08.6]} 53. Nxg6
{[%clk 0:00:10.3]} 53... b2 {[%clk 0:00:08.9]} 54. Rxa3 {[%clk 0:00:09.8]} 1-0

[Event "*** Titled Tuesday Blitz"]
[Site "Chess.com"]
[Date "2020.02.04"]
[Round "7"]
[White "Borsuk_Konstantin"]
[Black "JonahWillow"]
[Result "0-1"]
[WhiteElo "2545"]
[BlackElo "2742"]
[TimeControl "180+2"]
[EndTime "14:34:10 PST"]
[Termination "JonahWillow won by resignation"]

1. d4 {[%clk 0:03:01.9]} 1... d5 {[%clk 0:02:59.8]} 2. c4 {[%clk 0:03:03]} 2...
dxc4 {[%clk 0:03:01.7]} 3. Nf3 {[%clk 0:03:03.8]} 3... a6 {[%clk 0:03:01]} 4. e3
{[%clk 0:03:04.8]} 4... Bg4 {[%clk 0:03:01]} 5. Bxc4 {[%clk 0:03:05]} 5... e6
{[%clk 0:03:00.8]} 6. h3 {[%clk 0:02:44.9]} 6... Bh5 {[%clk 0:03:00.6]} 7. g4
{[%clk 0:02:45.7]} 7... Bg6 {[%clk 0:03:01.9]} 8. h4 {[%clk 0:02:47]} 8... Be4
{[%clk 0:02:54]} 9. Nbd2 {[%clk 0:02:47.1]} 9... Bd5 {[%clk 0:02:53.6]} 10. Bd3
{[%clk 0:02:38]} 10... b6 {[%clk 0:02:52.3]} 11. g5 {[%clk 0:02:26.6]} 11... Ne7
{[%clk 0:02:43.6]} 12. e4 {[%clk 0:02:04.6]} 12... Bb7 {[%clk 0:02:41.5]} 13.
Nb3 {[%clk 0:02:05.5]} 13... Nbc6 {[%clk 0:02:40.5]} 14. h5 {[%clk 0:01:57.8]}
14... Nc8 {[%clk 0:02:29.5]} 15. a3 {[%clk 0:01:52.7]} 15... Nd6 {[%clk
0:02:28]} 16. Be3 {[%clk 0:01:40.2]} 16... Be7 {[%clk 0:02:24.6]} 17. Rc1 {[%clk
0:01:35]} 17... Qd7 {[%clk 0:02:13.7]} 18. Qc2 {[%clk 0:01:30.9]} 18... Nb5
{[%clk 0:01:53]} 19. Kf1 {[%clk 0:01:08.5]} 19... Rc8 {[%clk 0:01:26.7]} 20. Qe2
{[%clk 0:01:01.5]} 20... f6 {[%clk 0:01:20.6]} 21. h6 {[%clk 0:00:59.2]} 21...
gxh6 {[%clk 0:01:18]} 22. Rxh6 {[%clk 0:00:56]} 22... fxg5 {[%clk 0:01:15.2]}
23. Rxc6 {[%clk 0:00:50.4]} 23... Bd6 {[%clk 0:00:15.6]} 24. Rc1 {[%clk
0:00:30.5]} 24... g4 {[%clk 0:00:14.6]} 25. Ng5 {[%clk 0:00:30.9]} 25... Qg7
{[%clk 0:00:13]} 26. Qxg4 {[%clk 0:00:29.6]} 26... Qxh6 {[%clk 0:00:12.1]} 27.
Nf7 {[%clk 0:00:17.2]} 27... Qf6 {[%clk 0:00:11.8]} 28. Nxh8 {[%clk 0:00:17.9]}
28... Qxh8 {[%clk 0:00:11.4]} 29. Qxe6+ {[%clk 0:00:18.9]} 29... Be7 {[%clk
0:00:12.6]} 30. Bg5 {[%clk 0:00:13.1]} 30... Qg7 {[%clk 0:00:12.6]} 31. Bxe7
{[%clk 0:00:13.3]} 31... Qxe7 {[%clk 0:00:14.5]} 32. Qxe7+ {[%clk 0:00:14.6]}
32... Kxe7 {[%clk 0:00:16.4]} 33. Ke2 {[%clk 0:00:15]} 33... h5 {[%clk
0:00:15.4]} 34. Ke3 {[%clk 0:00:16.4]} 34... h4 {[%clk 0:00:16.1]} 35. Nd2
{[%clk 0:00:15.7]} 35... h3 {[%clk 0:00:15.8]} 36. Rh1 {[%clk 0:00:15.1]} 36...
Rh8 {[%clk 0:00:16.7]} 37. f4 {[%clk 0:00:15.9]} 37... Nd6 {[%clk 0:00:16.2]}
38. Rh2 {[%clk 0:00:14.8]} 38... Nf7 {[%clk 0:00:15.9]} 39. Kf3 {[%clk 0:00:10]}
39... Bc8 {[%clk 0:00:15.9]} 40. f5 {[%clk 0:00:08.2]} 40... Ng5+ {[%clk
0:00:15]} 41. Kg4 {[%clk 0:00:07.6]} 41... Nf7 {[%clk 0:00:15.4]} 42. Rxh3
{[%clk 0:00:07.7]} 42... Rg8+ {[%clk 0:00:17]} 43. Kf4 {[%clk 0:00:08.8]} 43...
Rg2 {[%clk 0:00:17.9]} 44. Ke3 {[%clk 0:00:06.5]} 44... Ng5 {[%clk 0:00:17.3]}
45. Rh1 {[%clk 0:00:05]} 45... Rg3+ {[%clk 0:00:17.4]} 46. Ke2 {[%clk
0:00:04.8]} 46... Rg2+ {[%clk 0:00:18.5]} 47. Kd1 {[%clk 0:00:05.8]} 47... Rg3
{[%clk 0:00:18.7]} 48. Kc2 {[%clk 0:00:06.6]} 48... Rg2 {[%clk 0:00:20.4]} 49.
Kc3 {[%clk 0:00:08]} 49... Rg3 {[%clk 0:00:20.9]} 50. b4 {[%clk 0:00:08.4]}
50... Bb7 {[%clk 0:00:20.9]} 51. Re1 {[%clk 0:00:09.3]} 51... b5 {[%clk
0:00:19.8]} 52. d5 {[%clk 0:00:10.5]} 52... c6 {[%clk 0:00:09]} 53. dxc6 {[%clk
0:00:11]} 53... Bxc6 {[%clk 0:00:10.9]} 54. Kd4 {[%clk 0:00:12.3]} 54... Rg2
{[%clk 0:00:09.4]} 55. Nb3 {[%clk 0:00:13.1]} 55... Nf3+ {[%clk 0:00:10.1]} 56.
Kc5 {[%clk 0:00:13]} 56... Nxe1 {[%clk 0:00:12]} 57. Kxc6 {[%clk 0:00:12.2]}
57... Nxd3 {[%clk 0:00:13.1]} 58. Kb7 {[%clk 0:00:11.1]} 58... Rb2 {[%clk
0:00:10.2]} 59. Nd4 {[%clk 0:00:11.1]} 59... Ra2 {[%clk 0:00:09.5]} 0-1

[Event "*** Titled Tuesday Blitz"]
[Site "Chess.com"]
[Date "2020.02.04"]
[Round "7"]
[White "Orest_Vovk"]
[Black "Fortitudine"]
[Result "1/2-1/2"]
[WhiteElo "2380"]
[BlackElo "2233"]
[TimeControl "180+2"]
[EndTime "14:34:15 PST"]
[Termination "Game drawn by repetition"]

1. g4 {[%clk 0:03:01.9]} 1... d5 {[%clk 0:02:54.7]} 2. Bg2 {[%clk 0:02:57.3]}
2... c6 {[%clk 0:02:56.1]} 3. h3 {[%clk 0:02:56.9]} 3... g6 {[%clk 0:02:55.7]}
4. d4 {[%clk 0:02:57.3]} 4... Bg7 {[%clk 0:02:56.4]} 5. Nf3 {[%clk 0:02:58.4]}
5... Nf6 {[%clk 0:02:55.6]} 6. O-O {[%clk 0:02:59.3]} 6... Ne4 {[%clk
0:02:55.3]} 7. Nc3 {[%clk 0:02:58.2]} 7... h5 {[%clk 0:02:53.7]} 8. g5 {[%clk
0:02:56.5]} 8... Nxc3 {[%clk 0:02:46.5]} 9. bxc3 {[%clk 0:02:54.9]} 9... Nd7
{[%clk 0:02:38.8]} 10. Bf4 {[%clk 0:02:51.7]} 10... Nb6 {[%clk 0:02:39]} 11. Ne5
{[%clk 0:02:50.8]} 11... Nd7 {[%clk 0:02:32]} 12. e4 {[%clk 0:02:49.4]} 12...
Nxe5 {[%clk 0:02:32.7]} 13. Bxe5 {[%clk 0:02:45]} 13... Bxe5 {[%clk 0:02:33.4]}
14. dxe5 {[%clk 0:02:46.9]} 14... dxe4 {[%clk 0:02:28.1]} 15. Qxd8+ {[%clk
0:02:46]} 15... Kxd8 {[%clk 0:02:30]} 16. Rfe1 {[%clk 0:02:45.3]} 16... Be6
{[%clk 0:02:02.3]} 17. Rxe4 {[%clk 0:02:42]} 17... Kc7 {[%clk 0:02:03.5]} 18.
Rd4 {[%clk 0:02:40.8]} 18... Rhd8 {[%clk 0:01:47.9]} 19. a3 {[%clk 0:02:36.6]}
19... b6 {[%clk 0:00:57.9]} 20. Rad1 {[%clk 0:02:34.6]} 20... Bf5 {[%clk
0:00:52.6]} 21. R1d2 {[%clk 0:01:56]} 21... c5 {[%clk 0:00:46.5]} 22. Rxd8
{[%clk 0:01:46.6]} 22... Rxd8 {[%clk 0:00:48.4]} 23. Rxd8 {[%clk 0:01:47.9]}
23... Kxd8 {[%clk 0:00:50.3]} 24. h4 {[%clk 0:01:48.8]} 24... Bxc2 {[%clk
0:00:37]} 25. Bd5 {[%clk 0:01:49.8]} 25... e6 {[%clk 0:00:21.5]} 26. Bc6 {[%clk
0:01:48.5]} 26... Bb3 {[%clk 0:00:17.2]} 27. Kf1 {[%clk 0:01:47.3]} 27... a6
{[%clk 0:00:12]} 28. Be4 {[%clk 0:01:35.4]} 28... Bd5 {[%clk 0:00:10.9]} 29. Bd3
{[%clk 0:01:34.1]} 29... b5 {[%clk 0:00:11.6]} 30. Ke1 {[%clk 0:01:34.9]} 30...
Kc7 {[%clk 0:00:12.6]} 31. Kd2 {[%clk 0:01:35.6]} 31... Kc6 {[%clk 0:00:12.6]}
32. Ke3 {[%clk 0:01:36.3]} 32... Kb6 {[%clk 0:00:11.6]} 33. Kd2 {[%clk
0:01:35.5]} 33... Ka5 {[%clk 0:00:12.7]} 34. Kc1 {[%clk 0:01:36.5]} 34... Bb7
{[%clk 0:00:10.9]} 35. Kb2 {[%clk 0:01:34.2]} 35... b4 {[%clk 0:00:12]} 36. f4
{[%clk 0:01:20.2]} 36... bxa3+ {[%clk 0:00:08.8]} 37. Kxa3 {[%clk 0:01:20.8]}
37... Bc6 {[%clk 0:00:10.3]} 38. Bc4 {[%clk 0:01:13.8]} 38... Bb5 {[%clk
0:00:10.5]} 39. Ba2 {[%clk 0:01:14.7]} 39... Kb6 {[%clk 0:00:09]} 40. Bb1 {[%clk
0:01:11.4]} 40... c4 {[%clk 0:00:09.5]} 41. Be4 {[%clk 0:01:04.2]} 41... Kc5
{[%clk 0:00:09.9]} 42. Bb7 {[%clk 0:01:02.7]} 42... a5 {[%clk 0:00:11.2]} 43.
Be4 {[%clk 0:01:00.3]} 43... Bc6 {[%clk 0:00:10.3]} 44. Bc2 {[%clk 0:01:01]}
44... Kd5 {[%clk 0:00:08.1]} 45. Kb2 {[%clk 0:00:59.1]} 45... Kc5 {[%clk
0:00:07.7]} 46. Ka3 {[%clk 0:00:59.9]} 46... Kd5 {[%clk 0:00:07.7]} 47. Bb1
{[%clk 0:00:59.7]} 47... Kc5 {[%clk 0:00:08.6]} 48. Kb2 {[%clk 0:00:57.4]} 48...
Ba4 {[%clk 0:00:06.7]} 49. Be4 {[%clk 0:00:55.4]} 49... Bc6 {[%clk 0:00:07.6]}
50. Bc2 {[%clk 0:00:55.3]} 50... Bb5 {[%clk 0:00:08.1]} 51. Kc1 {[%clk
0:00:54.2]} 51... Bc6 {[%clk 0:00:07.3]} 52. Kd2 {[%clk 0:00:52.6]} 52... Bb5
{[%clk 0:00:08.6]} 53. Ke3 {[%clk 0:00:49.9]} 53... Bc6 {[%clk 0:00:10]} 54. Kd2
{[%clk 0:00:49.1]} 54... Bb5 {[%clk 0:00:10.8]} 55. Kc1 {[%clk 0:00:49]} 55...
Bc6 {[%clk 0:00:12]} 56. Kb2 {[%clk 0:00:49.4]} 56... Bb5 {[%clk 0:00:13.4]} 57.
Bb1 {[%clk 0:00:50.1]} 57... Bc6 {[%clk 0:00:14.5]} 58. Kc1 {[%clk 0:00:43]}
58... Bb5 {[%clk 0:00:15.5]} 59. Kd2 {[%clk 0:00:44]} 59... Bc6 {[%clk
0:00:16.9]} 60. Ke3 {[%clk 0:00:43.5]} 60... Bb5 {[%clk 0:00:18.2]} 61. Bc2
{[%clk 0:00:32.9]} 61... Bc6 {[%clk 0:00:19.1]} 62. Kd2 {[%clk 0:00:33.1]}
1/2-1/2